fUSD/lending_fUSD_20260202
["ID","MTS","AMOUNT","RATE_DAILY","PERIOD"]
[404288680,1770035440078,-500.0,0.00012411,2]
[404288681,1770035440087,-500.0,0.00012411,2]
[404288682,1770035440097,-500.0,0.00012411,2]
[404288683,1770035440106,-500.0,0.00012411,2]
[404288684,1770035440115,-500.0,0.00012411,2]
[404288685,1770035440124,-500.0,0.00012411,2]
[404288686,1770035440134,-500.0,0.00012411,2]
[404288687,1770035440143,-500.0,0.00012411,2]
[404288688,1770035440152,-500.0,0.00012411,2]
[404288689,1770035440161,-500.0,0.00012411,2]
[404288690,1770035440170,-211.73556923,0.00012411,2]
[404288691,1770035440180,-500.0,0.00012411,2]
[404288692,1770035440189,-500.0,0.00012411,2]
[404288693,1770035440198,-500.0,0.00012411,2]
[404288694,1770035440207,-500.0,0.00012411,2]
[404288695,1770035440216,-500.0,0.00012411,2]
[404288696,1770035440225,-500.0,0.00012411,2]
[404288697,1770035440235,-500.0,0.00012411,2]
[404288698,1770035440244,-500.0,0.00012411,2]
[404288699,1770035440253,-363.0,0.00012417,2]
[404288700,1770035440263,-611.0,0.00012423,2]
[404288701,1770035440272,-884.0,0.00012442,2]
[404288702,1770035440282,-150.0,0.00012472,2]
[404288703,1770035440291,-250.52896875,0.00012472,2]
[404288704,1770035440300,-500.0,0.00012472,2]
[404288705,1770035440310,-500.0,0.00012472,2]
[404288706,1770035440319,-150.0,0.00012472,2]
[404288707,1770035440328,-257.13669619,0.00012472,2]
[404288708,1770035440337,-500.0,0.00012472,2]
[404288709,1770035440346,-500.0,0.00012472,2]
[404288710,1770035440356,-150.54146631,0.00012472,2]
[404288711,1770035440366,-500.0,0.00012472,2]
[404288712,1770035440376,-5912.0,0.00012472,2]
[404288713,1770035440387,-150.0,0.00012472,2]
[404288714,1770035440396,-150.0,0.00012472,2]
[404288715,1770035440409,-207.33206215,0.00012472,2]
[404288716,1770035440418,-166.03286464,0.00012527,2]
[404288717,1770035440428,-500.0,0.00012527,2]
[404288718,1770035440437,-500.0,0.00012527,2]
[404288719,1770035440451,-150.0,0.00012527,2]
[404288720,1770035440461,-500.0,0.00012527,2]
[404288721,1770035440473,-500.0,0.00012527,2]
[404288722,1770035440482,-500.0,0.00012527,2]
[404288723,1770035440493,-5912.0,0.00012527,2]
[404288724,1770035440503,-150.0,0.00012527,2]
[404288725,1770035440515,-150.0,0.00012527,2]
[404288726,1770035440525,-388.17458479,0.00012532,2]
[404288727,1770035440535,-500.0,0.00012582,2]
[404288728,1770035440543,-500.0,0.00012582,2]
[404288729,1770035440553,-282.97813088,0.00012582,2]
[404288730,1770035440563,-500.0,0.00012582,2]
[404288731,1770035440574,-500.0,0.00012582,2]
[404288732,1770035440585,-500.0,0.00012582,2]
[404288733,1770035440596,-5912.0,0.00012582,2]
[404288734,1770035440606,-200.0,0.00012582,2]
[404288735,1770035440615,-200.0,0.00012582,2]
[404288736,1770035440625,-162.0,0.00012591,2]
[404288737,1770035440634,-1000.0,0.00012594,2]
[404288738,1770035440644,-32437.2215,0.00012594,2]
[404288739,1770035440654,-10000.0,0.00012602,2]
[404288740,1770035440663,-1680.0,0.00012609,2]
[404288741,1770035440673,-250.0,0.00012609,2]
[404288742,1770035440682,-250.0,0.00012609,2]
[404288743,1770035440692,-500.0,0.00012609,2]
[404288744,1770035440701,-500.0,0.00012636,2]
[404288745,1770035440710,-500.0,0.00012636,2]
[404288746,1770035440719,-206.36581695,0.00012636,2]
[404288747,1770035440728,-500.0,0.00012636,2]
[404288748,1770035440926,-5912.0,0.00012636,2]
[404288749,1770035440935,-500.0,0.00012691,2]
[404288750,1770035440945,-5912.0,0.00012691,2]
[404288751,1770035440955,-5912.0,0.00012746,2]
[404288752,1770035440964,-152.49,0.00012747,2]
[404288753,1770035440973,-197.37,0.00012773,2]
[404288754,1770035440982,-5912.0,0.00012801,2]
[404288755,1770035440991,-13195.72677001,0.00012848,2]
[404288756,1770035440999,-10851.34152705,0.00012848,2]
[404288757,1770035441009,-5912.0,0.00012856,2]
[404288758,1770035441018,-1600.0,0.00012869,2]
[404288759,1770035441027,-5912.0,0.0001291,2]
[404288760,1770035441036,-500.0,0.00012959,2]
[404288761,1770035441045,-294.02,0.00012963,2]
[404288762,1770035441054,-5912.0,0.00012965,2]
[404288763,1770035441063,-160.29,0.00012985,2]
[404288764,1770035441072,-5912.0,0.0001302,2]
[404288765,1770035441081,-5912.0,0.00013075,2]
[404288766,1770035441089,-5912.0,0.0001313,2]
[404288767,1770035441098,-574.61615132,0.00013164,2]
[404288768,1770035441107,-5912.0,0.00013184,2]
[404288769,1770035441116,-5912.0,0.00013239,2]
[404288770,1770035441125,-255.0,0.0001324,2]
[404288771,1770035441134,-5912.0,0.00013294,2]
[404288772,1770035441143,-5912.0,0.00013349,2]
[404288773,1770035441151,-5912.0,0.00013404,2]
[404288774,1770035441160,-197.37,0.00013411,2]
[404288775,1770035441169,-5912.0,0.00013458,2]
[404288776,1770035441178,-13195.72677001,0.0001348,2]
[404288777,1770035441187,-10851.34152705,0.0001348,2]
[404288778,1770035441196,-500.0,0.00013507,2]
[404288779,1770035441205,-5912.0,0.00013513,2]
[404288780,1770035441214,-500.0,0.00013534,2]
[404288781,1770035441223,-5912.0,0.00013568,2]
[404288782,1770035441232,-319.0,0.00013589,2]
[404288783,1770035441241,-5912.0,0.00013623,2]
[404288784,1770035441250,-5912.0,0.00013677,2]
[404288785,1770035441259,-500.0,0.00013698,2]
[404288786,1770035441268,-500.0,0.00013698,2]
[404288787,1770035441277,-310.72048062,0.00013698,2]
[404288788,1770035441286,-500.0,0.00013698,2]
[404288789,1770035441295,-500.0,0.00013698,2]
[404288790,1770035441304,-500.0,0.00013698,2]
[404288791,1770035441313,-500.0,0.00013698,2]
[404288792,1770035441322,-500.0,0.00013698,2]
[404288793,1770035441331,-500.0,0.00013698,2]
[404288794,1770035441340,-500.0,0.00013698,2]
[404288795,1770035441349,-500.89475649,0.00013698,2]
[404288796,1770035441359,-500.0,0.00013698,2]
[404288797,1770035441370,-277.632,0.00013698,2]
[404288798,1770035441379,-506.4463116,0.00013698,2]
[404288799,1770035441388,-500.0,0.00013698,2]
[404288800,1770035441398,-503.69401691,0.00013698,2]
[404288801,1770035441407,-500.0,0.00013698,2]
[404288802,1770035441416,-500.0,0.00013698,2]
[404288803,1770035441425,-500.0,0.00013698,2]
[404288804,1770035441434,-500.0,0.00013698,2]
[404288805,1770035441443,-500.0,0.00013698,2]
[404288806,1770035441455,-500.0,0.00013698,2]
[404288807,1770035441464,-500.0,0.00013698,2]
[404288808,1770035441473,-500.0,0.00013698,2]
[404288809,1770035441482,-500.0,0.00013698,2]
[404288810,1770035441492,-523.26417397,0.00013698,2]
[404288811,1770035441500,-500.0,0.00013698,2]
[404288812,1770035441509,-500.0,0.00013698,2]
[404288813,1770035441521,-587.5541255,0.00013698,2]
[404288814,1770035441531,-500.0,0.00013698,2]
[404288815,1770035441541,-496.93460441,0.00013698,2]
[404288816,1770035441550,-500.0,0.00013698,2]
[404288817,1770035441559,-500.0,0.00013698,2]
[404288818,1770035441568,-500.0,0.00013698,2]
[404288819,1770035441577,-500.0,0.00013698,2]
[404288820,1770035441586,-500.0,0.00013698,2]
[404288821,1770035441597,-500.0,0.00013698,2]
[404288822,1770035441608,-519.14978785,0.00013698,2]
[404288823,1770035441617,-500.0,0.00013698,2]
[404288824,1770035441626,-500.0,0.00013698,2]
[404288825,1770035441635,-500.0,0.00013698,2]
[404288826,1770035441644,-500.0,0.00013698,2]
[404288827,1770035441653,-500.0,0.00013698,2]
[404288828,1770035441663,-500.0,0.00013698,2]
[404288829,1770035441674,-500.0,0.00013698,2]
[404288830,1770035441684,-500.0,0.00013698,2]
[404288831,1770035441694,-500.0,0.00013698,2]
[404288832,1770035441703,-500.0,0.00013698,2]
[404288833,1770035441712,-500.0,0.00013698,2]
[404288834,1770035441721,-159.30915247,0.00013698,2]
[404288835,1770035441730,-500.0,0.00013698,2]
[404288836,1770035441738,-500.0,0.00013698,2]
[404288837,1770035441747,-500.0,0.00013698,2]
[404288838,1770035441756,-500.0,0.00013698,2]
[404288839,1770035441765,-500.0,0.00013698,2]
[404288840,1770035441774,-500.0,0.00013698,2]
[404288841,1770035441783,-500.0,0.00013698,2]
[404288842,1770035441792,-500.0,0.00013698,2]
[404288843,1770035441801,-500.0,0.00013698,2]
[404288844,1770035441810,-504.83472388,0.00013698,2]
[404288845,1770035441820,-500.0,0.00013698,2]
[404288846,1770035441829,-500.0,0.00013698,2]
[404288847,1770035441838,-500.0,0.00013698,2]
[404288848,1770035441847,-500.0,0.00013698,2]
[404288849,1770035441856,-500.0,0.00013698,2]
[404288850,1770035441865,-500.0,0.00013698,2]
[404288851,1770035441874,-500.0,0.00013698,2]
[404288852,1770035441882,-500.0,0.00013698,2]
[404288853,1770035441891,-500.0,0.00013698,2]
[404288854,1770035441900,-500.0,0.00013698,2]
[404288855,1770035441909,-500.0,0.00013698,2]
[404288856,1770035441918,-500.0,0.00013698,2]
[404288857,1770035441928,-500.0,0.00013698,2]
[404288858,1770035441938,-500.0,0.00013698,2]
[404288859,1770035441949,-500.0,0.00013698,2]
[404288860,1770035441959,-352.84918147,0.00013698,2]
[404288861,1770035441969,-691.55,0.000137,2]
[404288862,1770035441978,-691.55,0.000137,2]
[404288863,1770035441988,-691.55,0.000137,2]
[404288864,1770035441998,-691.55,0.000137,2]
[404288865,1770035442007,-691.55,0.000137,2]
[404288866,1770035442017,-5924.61609587,0.00013732,2]
[404288867,1770035442027,-151.0,0.00013819,2]
[404288868,1770035442036,-151.0,0.00013825,2]
[404288869,1770035442046,-151.0,0.00013825,2]
[404288870,1770035442055,-549.49760405,0.00013841,2]
[404288871,1770035442064,-2351.0,0.0001387,2]
[404288872,1770035442073,-500.125501,0.00013973,2]
[404288873,1770035442082,-501.73498825,0.00013973,2]
[404288874,1770035442091,-500.0,0.00013973,2]
[404288875,1770035442100,-500.0,0.00013973,2]
[404288876,1770035442109,-500.0,0.00013973,2]
[404288877,1770035442118,-500.0,0.00013973,2]
[404288878,1770035442127,-500.7756559,0.00013973,2]
[404288879,1770035442136,-501.3792678,0.00013973,2]
[404288880,1770035442145,-177.72668829,0.00013973,2]
[404288881,1770035442154,-500.0,0.00013973,2]
[404288882,1770035442163,-500.0,0.00013973,2]
[404288883,1770035442171,-500.0,0.00013973,2]
[404288884,1770035442180,-500.0,0.00013973,2]
[404288885,1770035442189,-217.67941742,0.00013973,2]
[404288886,1770035442198,-500.0,0.00013973,2]
[404288887,1770035442207,-170.70108958,0.00013973,2]
[404288888,1770035442217,-500.0,0.00013973,2]
[404288889,1770035442226,-169.68447442,0.00013973,2]
[404288890,1770035442235,-407.76648186,0.00013973,2]
[404288891,1770035442244,-500.0,0.00013973,2]
[404288892,1770035442253,-500.88887474,0.00013973,2]
[404288893,1770035442262,-500.0,0.00013973,2]
[404288894,1770035442271,-500.0,0.00013973,2]
[404288895,1770035442281,-500.0,0.00013973,2]
[404288896,1770035442290,-500.0,0.00013973,2]
[404288898,1770035442299,-500.0,0.00013973,2]
[404288899,1770035442308,-503.39541784,0.00013973,2]
[404288900,1770035442317,-319.40810166,0.00013973,2]
[404288901,1770035442326,-500.0,0.00013973,2]
[404288902,1770035442335,-197.37,0.0001405,2]
[404288903,1770035442344,-500.0,0.00014055,2]
[404288904,1770035442353,-13195.72677001,0.00014111,2]
[404288905,1770035442361,-10851.34152705,0.00014111,2]
[404288906,1770035442370,-574.61615132,0.00014111,2]
[404288907,1770035442379,-910.54547353,0.00014255,2]
[404288908,1770035442387,-1600.0,0.00014299,2]
[404288909,1770035442397,-500.0,0.00014356,2]
[404288910,1770035442406,-3776.56493821,0.0001439,2]
[404288911,1770035442415,-433.0,0.00014419,2]
[404288912,1770035442424,-1000.0,0.00014521,2]
[404288913,1770035442433,-463.7080185,0.00014521,2]
[404288914,1770035442445,-1000.0,0.00014521,2]
[404288915,1770035442454,-845.5316297,0.00014521,2]
[404288916,1770035442463,-445.7560689,0.00014521,2]
[404288917,1770035442472,-514.08429044,0.00014521,2]
[404288918,1770035442481,-1142.79089811,0.00014521,2]
[404288919,1770035442490,-504.42982336,0.00014521,2]
[404288920,1770035442499,-1000.0,0.00014521,2]
[404288921,1770035442510,-500.0,0.00014521,2]
[404288922,1770035442521,-1061.85744553,0.00014521,2]
[404288923,1770035442532,-1002.39079139,0.00014521,2]
[404288924,1770035442542,-1893.0370582,0.0001454,2]
[404288925,1770035442551,-2561.3379,0.0001454,2]
[404288926,1770035442561,-500.0,0.00014603,2]
[404288927,1770035442570,-549.49760405,0.00014653,2]
[404288928,1770035442579,-197.37,0.00014689,2]
[404288929,1770035442588,-13195.72677001,0.00014742,2]
[404288930,1770035442597,-10851.34152705,0.00014743,2]
[404288931,1770035442606,-179.5507367,0.000149,2]
[404288932,1770035442615,-250.0,0.00015,2]
[404288933,1770035442624,-574.61615132,0.00015059,2]
[404288934,1770035442633,-288.97411293,0.00015059,2]
[404288935,1770035442642,-5146.17023235,0.00015059,2]
[404288936,1770035442651,-1183.71644684,0.00015068,2]
[404288937,1770035442660,-500.0,0.00015068,2]
[404288938,1770035442671,-179.20533301,0.00015068,2]
[404288939,1770035442681,-1500.0,0.00015068,2]
[404288940,1770035442692,-1500.0,0.00015068,2]
[404288941,1770035442703,-900.0,0.00015068,2]
[404288942,1770035442713,-250.0,0.00015115,2]
[404288943,1770035442724,-500.0,0.00015151,2]
[404288944,1770035442734,-500.0,0.00015205,2]
[404288945,1770035442743,-3292.0,0.00015257,2]
[404288946,1770035442753,-152.49,0.00015314,2]
[404288947,1770035442763,-197.37,0.00015327,2]
[404288948,1770035442776,-337.39744568,0.00015364,2]
[404288949,1770035442787,-13195.72677001,0.00015374,2]
[404288950,1770035442805,-10851.34152705,0.00015374,2]
[404288951,1770035442816,-549.49760405,0.00015464,2]
[404288952,1770035442827,-500.0,0.00015473,2]
[404288953,1770035442837,-500.0,0.00015473,2]
[404288954,1770035442846,-501.94112039,0.00015473,2]
[404288955,1770035442856,-500.0,0.00015473,2]
[404288956,1770035442865,-500.0,0.00015473,2]
[404288957,1770035442875,-500.0,0.00015473,2]
[404288958,1770035442884,-500.0,0.00015473,2]
[404288959,1770035442894,-500.0,0.00015473,2]
[404288960,1770035442904,-500.0,0.00015473,2]
[404288961,1770035442914,-500.0,0.00015473,2]
[404288962,1770035442926,-501.09302375,0.00015473,2]
[404288963,1770035442936,-500.0,0.00015473,2]
[404288965,1770035442946,-500.0,0.00015473,2]
[404288967,1770035442957,-500.0,0.00015473,2]
[404288969,1770035442966,-586.45296103,0.00015473,2]
[404288971,1770035442976,-500.0,0.00015473,2]
[404288973,1770035442986,-500.0,0.00015473,2]
[404288975,1770035442996,-500.0,0.00015473,2]
[404288976,1770035443006,-157.58038737,0.00015473,2]
[404288977,1770035443017,-500.0,0.00015473,2]
[404288978,1770035443026,-500.0,0.00015473,2]
[404288979,1770035443036,-502.28798495,0.00015473,2]
[404288980,1770035443045,-160.29154918,0.00015473,2]
[404288983,1770035443055,-500.0,0.00015473,2]
[404288985,1770035443064,-500.0,0.00015473,2]
[404288987,1770035443075,-500.0,0.00015473,2]
[404288988,1770035443084,-501.89927416,0.00015473,2]
[404288989,1770035443094,-500.0,0.00015473,2]
[404288990,1770035443103,-500.0,0.00015473,2]
[404288991,1770035443113,-291.61164288,0.00015473,2]
[404288992,1770035443122,-500.0,0.00015473,2]
[404288993,1770035443131,-501.08336444,0.00015473,2]
[404288994,1770035443140,-500.0,0.00015473,2]
[404288996,1770035443149,-500.0,0.00015473,2]
[404288998,1770035443159,-500.0,0.00015473,2]
[404289000,1770035443168,-500.0,0.00015473,2]
[404289002,1770035443177,-500.0,0.00015473,2]
[404289003,1770035443187,-500.0,0.00015473,2]
[404289005,1770035443196,-500.0,0.00015473,2]
[404289006,1770035443205,-500.0,0.00015473,2]
[404289007,1770035443215,-500.0,0.00015473,2]
[404289008,1770035443224,-500.62937167,0.00015473,2]
[404289009,1770035443234,-500.0,0.00015473,2]
[404289010,1770035443244,-500.0,0.00015473,2]
[404289011,1770035443253,-500.0,0.00015473,2]
[404289012,1770035443263,-500.0,0.00015473,2]
[404289013,1770035443273,-500.0,0.00015473,2]
[404289014,1770035443283,-500.0,0.00015473,2]
[404289015,1770035443293,-500.0,0.00015473,2]
[404289016,1770035443303,-25228.24,0.00015499,2]
[404289017,1770035443313,-305.0,0.00015589,2]
[404289018,1770035443323,-277.64620196,0.00015616,2]
[404289019,1770035443334,-392.5604124,0.00015616,2]
[404289020,1770035443348,-294.02,0.00015628,2]
[404289021,1770035443358,-736.0,0.00015696,2]
[404289022,1770035443369,-500.0,0.00015699,2]
[404289023,1770035443381,-1600.0,0.00015729,2]
[404289024,1770035443391,-150.0,0.00015791,2]
[404289025,1770035443400,-159.99318318,0.00015819,2]
[404289026,1770035443410,-715.94,0.00015918,2]
[404289027,1770035443420,-3992.56342833,0.0001596,2]
[404289028,1770035443430,-197.37,0.00015966,2]
[404289029,1770035443440,-956.83032625,0.00016,2]
[404289030,1770035443453,-270.91542523,0.00016,2]
[404289031,1770035443462,-421.15115649,0.00016,2]
[404289032,1770035443471,-58518.44812411,0.00016,4]
[404289033,1770035443480,-13195.72677001,0.00016005,2]
[404289034,1770035443490,-10851.34152705,0.00016006,2]
[404289035,1770035443499,-574.61615132,0.00016006,2]
[404289036,1770035443508,-1000.0,0.00016021,2]
[404289037,1770035443518,-1000.0,0.00016021,2]
[404289038,1770035443528,-1000.0,0.00016021,2]
[404289039,1770035443538,-503.27979337,0.00016021,2]
[404289040,1770035443546,-1000.0,0.00016021,2]
[404289041,1770035443556,-1004.30163313,0.00016021,2]
[404289042,1770035443566,-1000.0,0.00016021,2]
[404289043,1770035443575,-1000.0,0.00016021,2]
[404289044,1770035443586,-1018.80564021,0.00016021,2]
[404289045,1770035443597,-1000.0,0.00016021,2]
[404289046,1770035443607,-1000.0,0.00016021,2]
[404289047,1770035443617,-1000.0,0.00016021,2]
[404289048,1770035443627,-1000.0,0.00016021,2]
[404289049,1770035443637,-1000.0,0.00016021,2]
[404289050,1770035443646,-1005.38162593,0.00016021,2]
[404289051,1770035443657,-1000.0,0.00016021,2]
[404289052,1770035443668,-1000.0,0.00016021,2]
[404289053,1770035443678,-1005.45817911,0.00016021,2]
[404289054,1770035443687,-740.83933027,0.00016021,2]
[404289055,1770035443696,-1000.0,0.00016021,2]
[404289056,1770035443705,-1000.0,0.00016021,2]
[404289057,1770035443714,-1003.56149344,0.00016021,2]
[404289058,1770035443724,-761.27528148,0.00016021,2]
[404289059,1770035443733,-1000.0,0.00016021,2]
[404289060,1770035443742,-1000.0,0.00016021,2]
[404289061,1770035443751,-503.91068608,0.00016021,2]
[404289062,1770035443760,-399.10712823,0.00016021,2]
[404289063,1770035443769,-1000.0,0.00016021,2]
[404289064,1770035443779,-1000.0,0.00016021,2]
[404289065,1770035443789,-487.31307274,0.00016021,2]
[404289066,1770035443798,-1000.0,0.00016021,2]
[404289067,1770035443807,-1000.0,0.00016021,2]
[404289068,1770035443816,-1000.0,0.00016021,2]
[404289069,1770035443826,-1000.0,0.00016021,2]
[404289070,1770035443835,-1000.0,0.00016021,2]
[404289071,1770035443843,-1000.0,0.00016021,2]
[404289072,1770035443853,-174.61919141,0.0001611,2]
[404289073,1770035443862,-721.12765535,0.0001611,2]
[404289074,1770035443870,-500.0,0.0001611,2]
[404289075,1770035443879,-500.0,0.0001611,2]
[404289076,1770035443893,-500.0,0.0001611,2]
[404289077,1770035443902,-500.0,0.0001611,2]
[404289078,1770035443912,-500.0,0.0001611,2]
[404289079,1770035443921,-500.0,0.0001611,2]
[404289080,1770035443930,-500.0,0.0001611,2]
[404289081,1770035443939,-500.0,0.0001611,2]
[404289082,1770035443948,-500.0,0.0001611,2]
[404289083,1770035443958,-500.0,0.0001611,2]
[404289084,1770035443967,-500.0,0.0001611,2]
[404289085,1770035443976,-500.0,0.0001611,2]
[404289086,1770035443985,-500.0,0.0001611,2]
[404289087,1770035443994,-232.68774879,0.0001611,2]
[404289088,1770035444004,-578.20924308,0.0001611,2]
[404289089,1770035444014,-209.40437684,0.0001611,2]
[404289090,1770035444024,-250.0,0.0001611,2]
[404289091,1770035444033,-250.0,0.0001611,2]
[404289092,1770035444043,-250.0,0.0001611,2]
[404289093,1770035444055,-250.0,0.0001611,2]
[404289094,1770035444067,-1428.38747117,0.0001611,2]
[404289095,1770035444078,-250.0,0.0001611,2]
[404289096,1770035444091,-250.0,0.0001611,2]
[404289097,1770035444100,-250.0,0.0001611,2]
[404289098,1770035444110,-250.0,0.0001611,2]
[404289099,1770035444119,-250.0,0.0001611,2]
[404289100,1770035444131,-250.0,0.0001611,2]
[404289101,1770035444143,-250.0,0.0001611,2]
[404289102,1770035444153,-322.6107,0.0001611,2]
[404289103,1770035444163,-209.40437684,0.0001611,2]
[404289104,1770035444172,-277.35679052,0.0001611,2]
[404289105,1770035444183,-209.40437684,0.0001611,2]
[404289106,1770035444195,-151.0,0.0001611,2]
[404289107,1770035444206,-859.80605061,0.0001611,2]
[404289108,1770035444217,-3412.42,0.00016116,2]
[404289109,1770035444229,-305.66548204,0.00016139,2]
[404289110,1770035444238,-217.15233878,0.00016165,2]
[404289111,1770035444247,-500.0,0.00016167,2]
[404289112,1770035444256,-225.18697532,0.0001622,2]
[404289113,1770035444266,-507.10580581,0.00016247,2]
[404289114,1770035444275,-233.51889341,0.00016275,2]
[404289115,1770035444284,-242.15909246,0.0001633,2]
[404289116,1770035444294,-1852.42,0.00016366,2]
[404289117,1770035444304,-256.42,0.00016381,2]
[404289118,1770035444313,-251.11897888,0.00016385,2]
[404289119,1770035444323,-163.0,0.000164,2]
[404289120,1770035444332,-163.0,0.000164,2]
[404289121,1770035444341,-2835.0,0.000164,2]
[404289122,1770035444350,-159.99318318,0.00016428,2]
[404289123,1770035444359,-1872.11781497,0.00016438,2]
[404289124,1770035444368,-1330.2,0.00016438,2]
[404289125,1770035444377,-729.88631078,0.00016438,2]
[404289126,1770035444386,-729.88631078,0.00016438,2]
[404289127,1770035444395,-729.88631078,0.00016438,2]
[404289128,1770035444405,-729.88631078,0.00016438,2]
[404289129,1770035444414,-729.88631078,0.00016438,2]
[404289130,1770035444425,-729.88631078,0.00016438,2]
[404289131,1770035444439,-729.88631078,0.00016438,2]
[404289132,1770035444452,-729.88631078,0.00016438,2]
[404289133,1770035444462,-729.88631078,0.00016438,2]
[404289134,1770035444471,-729.88631078,0.00016438,2]
[404289135,1770035444480,-729.88631078,0.00016438,2]
[404289136,1770035444490,-729.88631078,0.00016438,2]
[404289137,1770035444499,-729.88631078,0.00016438,2]
[404289138,1770035444508,-729.88631078,0.00016438,2]
[404289139,1770035444518,-729.88631078,0.00016438,2]
[404289140,1770035444528,-729.88631078,0.00016438,2]
[404289141,1770035444538,-729.88631078,0.00016438,2]
[404289142,1770035444547,-729.88631078,0.00016438,2]
[404289143,1770035444557,-729.88631078,0.00016438,2]
[404289144,1770035444567,-729.88631078,0.00016438,2]
[404289145,1770035444576,-729.88631078,0.00016438,2]
[404289146,1770035444586,-729.88631078,0.00016438,2]
[404289157,1770035444795,-729.88631078,0.00016438,2]
[404289161,1770035444831,-729.88631078,0.00016438,2]
[404289163,1770035444841,-729.88631078,0.00016438,2]
[404289164,1770035444850,-729.88631078,0.00016438,2]
[404289165,1770035444860,-729.88631078,0.00016438,2]
[404289166,1770035444869,-729.88631078,0.00016438,2]
[404289167,1770035444879,-729.88631078,0.00016438,2]
[404289168,1770035444888,-729.88631078,0.00016438,2]
[404289169,1770035444897,-729.88631078,0.00016438,2]
[404289170,1770035444907,-729.88631078,0.00016438,2]
[404289171,1770035444920,-729.88631078,0.00016438,2]
[404289172,1770035444929,-729.88631078,0.00016438,2]
[404289173,1770035444939,-729.88631078,0.00016438,2]
[404289174,1770035444948,-729.88631078,0.00016438,2]
[404289175,1770035444957,-729.88631078,0.00016438,2]
[404289176,1770035444967,-729.88631078,0.00016438,2]
[404289177,1770035444976,-729.88631078,0.00016438,2]
[404289178,1770035444985,-729.88631078,0.00016438,2]
[404289179,1770035444995,-729.88631078,0.00016438,2]
[404289180,1770035445004,-729.88631078,0.00016438,2]
[404289181,1770035445013,-729.88631078,0.00016438,2]
[404289182,1770035445022,-729.88631078,0.00016438,2]
[404289183,1770035445033,-729.88631078,0.00016438,2]
[404289184,1770035445042,-729.88631078,0.00016438,2]
[404289185,1770035445051,-729.88631078,0.00016438,2]
[404289186,1770035445061,-729.88631078,0.00016438,2]
[404289187,1770035445070,-729.88631078,0.00016438,2]
[404289188,1770035445080,-729.88631078,0.00016438,2]
[404289189,1770035445089,-729.88631078,0.00016438,2]
[404289190,1770035445099,-729.88631078,0.00016438,2]
[404289191,1770035445108,-729.88631078,0.00016438,2]
[404289192,1770035445118,-729.88631078,0.00016438,2]
[404289193,1770035445127,-729.88631078,0.00016438,2]
[404289194,1770035445137,-729.88631078,0.00016438,2]
[404289195,1770035445146,-729.88631078,0.00016438,2]
[404289196,1770035445155,-729.88631078,0.00016438,2]
[404289197,1770035445165,-729.88631078,0.00016438,2]
[404289198,1770035445174,-729.88631078,0.00016438,2]
[404289199,1770035445183,-729.88631078,0.00016438,2]
[404289200,1770035445192,-729.88631078,0.00016438,2]
[404289201,1770035445202,-4432.34468663,0.00016438,2]
[404289202,1770035445211,-4432.34468663,0.00016438,2]
[404289203,1770035445221,-4432.34468663,0.00016438,2]
[404289204,1770035445230,-4432.34468663,0.00016438,2]
[404289205,1770035445240,-4432.34468663,0.00016438,2]
[404289206,1770035445249,-4432.34468663,0.00016438,2]
[404289207,1770035445258,-4432.34468663,0.00016438,2]
[404289208,1770035445268,-4432.34468663,0.00016438,2]
[404289209,1770035445279,-4432.34468663,0.00016438,2]